fUSD/lending_fUSD_20251017
["ID","MTS","AMOUNT","RATE_DAILY","PERIOD"]
[391665907,1760723456874,-3003.98,0.000274,2]
[391665908,1760723456883,-3003.98,0.000274,2]
[391665909,1760723456893,-2000.0,0.00027412,5]
[391665910,1760723456902,-500.0,0.00027477,2]
[391665911,1760723456911,-322.6107,0.00027478,2]
[391665912,1760723456921,-151.0,0.00027478,2]
[391665913,1760723456931,-8882.6885148,0.00027478,2]
[391665914,1760723456940,-151.0,0.00027478,2]
[391665915,1760723456950,-1000.0,0.00027478,2]
[391665916,1760723456959,-194.72792766,0.00027478,2]
[391665917,1760723456968,-670.58624095,0.00027478,2]
[391665918,1760723456978,-1000.0,0.00027478,2]
[391665919,1760723456988,-1000.0,0.00027478,2]
[391665920,1760723456997,-1000.0,0.00027478,2]
[391665921,1760723457007,-250.0,0.00027478,2]
[391665922,1760723457016,-1000.0,0.00027478,2]
[391665923,1760723457026,-250.0,0.00027478,2]
[391665924,1760723457036,-151.0,0.00027478,2]
[391665925,1760723457045,-1000.0,0.00027478,2]
[391665926,1760723457055,-250.0,0.00027478,2]
[391665927,1760723457064,-151.0,0.00027478,2]
[391665928,1760723457074,-1000.0,0.00027478,2]
[391665929,1760723457083,-250.0,0.00027478,2]
[391665930,1760723457093,-300.0,0.00027478,2]
[391665931,1760723457102,-1000.0,0.00027478,2]
[391665932,1760723457111,-250.0,0.00027478,2]
[391665933,1760723457121,-1000.0,0.00027478,2]
[391665934,1760723457132,-250.0,0.00027478,2]
[391665935,1760723457142,-1000.0,0.00027478,2]
[391665936,1760723457151,-250.0,0.00027478,2]
[391665937,1760723457160,-1000.0,0.00027478,2]
[391665938,1760723457170,-250.0,0.00027478,2]
[391665939,1760723457180,-1000.0,0.00027478,2]
[391665940,1760723457189,-250.0,0.00027478,2]
[391665941,1760723457198,-1000.0,0.00027478,2]
[391665942,1760723457207,-250.0,0.00027478,2]
[391665943,1760723457217,-250.0,0.00027478,2]
[391665944,1760723457226,-1000.0,0.00027478,2]
[391665945,1760723457236,-250.0,0.00027478,2]
[391665946,1760723457245,-1000.0,0.00027478,2]
[391665947,1760723457255,-250.0,0.00027478,2]
[391665948,1760723457264,-160.0,0.00027478,2]
[391665949,1760723457273,-644.79446246,0.00027478,2]
[391665950,1760723457283,-1000.0,0.00027478,2]
[391665951,1760723457292,-1000.0,0.00027478,2]
[391665952,1760723457301,-1000.0,0.00027478,2]
[391665953,1760723457311,-1000.0,0.00027478,2]
[391665954,1760723457320,-151.0,0.00027478,2]
[391665955,1760723457329,-1000.0,0.00027478,2]
[391665956,1760723457339,-151.0,0.00027478,2]
[391665957,1760723457348,-1000.0,0.00027478,2]
[391665958,1760723457357,-1000.0,0.00027478,2]
[391665959,1760723457367,-151.0,0.00027478,2]
[391665960,1760723457377,-1000.0,0.00027478,2]
[391665961,1760723457386,-151.0,0.00027478,2]
[391665962,1760723457395,-250.0,0.00027478,2]
[391665963,1760723457405,-1000.0,0.00027478,2]
[391665964,1760723457414,-239.79609754,0.00027478,2]
[391665965,1760723457424,-151.0,0.00027478,2]
[391665966,1760723457433,-3000.0,0.00027478,2]
[391665967,1760723457443,-250.0,0.00027478,2]
[391665968,1760723457453,-1000.0,0.00027478,2]
[391665969,1760723457462,-151.0,0.00027478,2]
[391665970,1760723457471,-3000.0,0.00027478,2]
[391665971,1760723457480,-250.0,0.00027478,2]
[391665972,1760723457491,-1000.0,0.00027478,2]
[391665973,1760723457501,-151.0,0.00027478,2]
[391665974,1760723457510,-3000.0,0.00027478,2]
[391665975,1760723457520,-250.0,0.00027478,2]
[391665976,1760723457529,-151.0,0.00027478,2]
[391665977,1760723457539,-3000.0,0.00027478,2]
[391665978,1760723457549,-250.0,0.00027478,2]
[391665979,1760723457559,-151.0,0.00027478,2]
[391665980,1760723457568,-3000.0,0.00027478,2]
[391665981,1760723457577,-250.0,0.00027478,2]
[391665982,1760723457592,-151.0,0.00027478,2]
[391665983,1760723457601,-151.0,0.00027478,2]
[391665984,1760723457611,-3000.0,0.00027478,2]
[391665985,1760723457620,-1000.0,0.00027478,2]
[391665986,1760723457631,-250.0,0.00027478,2]
[391665987,1760723457641,-151.0,0.00027478,2]
[391665988,1760723457650,-3000.0,0.00027478,2]
[391665989,1760723457660,-1000.0,0.00027478,2]
[391665990,1760723457670,-250.0,0.00027478,2]
[391665991,1760723457679,-151.0,0.00027478,2]
[391665992,1760723457689,-3000.0,0.00027478,2]
[391665993,1760723457698,-1000.0,0.00027478,2]
[391665994,1760723457708,-250.0,0.00027478,2]
[391665995,1760723457717,-151.0,0.00027478,2]
[391665996,1760723457727,-1000.0,0.00027478,2]
[391665997,1760723457736,-3000.0,0.00027478,2]
[391665998,1760723457746,-250.0,0.00027478,2]
[391665999,1760723457755,-1000.0,0.00027478,2]
[391666000,1760723457764,-3000.0,0.00027478,2]
[391666001,1760723457774,-250.0,0.00027478,2]
[391666002,1760723457784,-1000.0,0.00027478,2]
[391666003,1760723457793,-3000.0,0.00027478,2]
[391666004,1760723457803,-250.0,0.00027478,2]
[391666005,1760723457812,-1000.0,0.00027478,2]
[391666006,1760723457823,-2065.7387676,0.00027478,2]
[391666007,1760723457833,-250.0,0.00027478,2]
[391666008,1760723457842,-1000.0,0.00027478,2]
[391666009,1760723457852,-257.91778498,0.00027478,2]
[391666010,1760723457861,-1000.0,0.00027478,2]
[391666011,1760723457871,-1000.0,0.00027478,2]
[391666012,1760723457881,-1000.0,0.00027478,2]
[391666013,1760723457890,-1000.0,0.00027478,2]
[391666014,1760723457900,-1000.0,0.00027478,2]
[391666015,1760723457910,-250.0,0.00027478,2]
[391666016,1760723457919,-250.0,0.00027478,2]
[391666017,1760723457929,-250.0,0.00027478,2]
[391666018,1760723457938,-250.0,0.00027478,2]
[391666019,1760723457948,-250.0,0.00027478,2]
[391666020,1760723457957,-250.0,0.00027478,2]
[391666021,1760723457967,-250.0,0.00027478,2]
[391666022,1760723457977,-500.0,0.00027478,2]
[391666023,1760723457986,-250.0,0.00027478,2]
[391666024,1760723457996,-500.0,0.00027478,2]
[391666025,1760723458006,-250.0,0.00027478,2]
[391666026,1760723458015,-500.0,0.00027478,2]
[391666027,1760723458024,-250.0,0.00027478,2]
[391666028,1760723458035,-500.0,0.00027478,2]
[391666029,1760723458045,-250.0,0.00027478,2]
[391666030,1760723458054,-500.0,0.00027478,2]
[391666031,1760723458064,-250.0,0.00027478,2]
[391666032,1760723458074,-500.0,0.00027478,2]
[391666033,1760723458083,-250.0,0.00027478,2]
[391666034,1760723458096,-500.0,0.00027478,2]
[391666035,1760723458106,-500.0,0.00027478,2]
[391666036,1760723458116,-500.0,0.00027478,2]
[391666037,1760723458125,-500.0,0.00027478,2]
[391666038,1760723458135,-500.0,0.00027478,2]
[391666039,1760723458145,-500.0,0.00027478,2]
[391666040,1760723458155,-500.0,0.00027478,2]
[391666041,1760723458164,-250.0,0.00027478,2]
[391666042,1760723458174,-250.0,0.00027478,2]
[391666043,1760723458184,-337.04050925,0.00027478,2]
[391666044,1760723458195,-9211.34798985,0.00027533,2]
[391666045,1760723458204,-9552.16786547,0.00027588,2]
[391666046,1760723458213,-9905.5980765,0.00027643,2]
[391666047,1760723458223,-892.44604892,0.00027656,7]
[391666048,1760723458232,-405.92,0.0002767,17]
[391666049,1760723458241,-500.0,0.00027671,17]
[391666050,1760723458251,-500.0,0.00027671,17]
[391666051,1760723458261,-539.63,0.00027671,17]
[391666052,1760723458270,-500.0,0.00027671,17]
[391666053,1760723458279,-500.0,0.00027671,17]
[391666054,1760723458289,-500.0,0.00027671,17]
[391666055,1760723458299,-500.0,0.00027671,17]
[391666056,1760723458308,-176.35,0.00027671,17]
[391666057,1760723458317,-601.22,0.00027671,17]
[391666058,1760723458327,-500.0,0.00027671,14]
[391666059,1760723458336,-500.0,0.00027671,17]
[391666060,1760723458346,-552.88,0.00027671,17]
[391666061,1760723458356,-500.0,0.00027671,17]
[391666062,1760723458366,-2653.06,0.00027671,17]
[391666063,1760723458375,-199.0,0.00027671,7]
[391666064,1760723458384,-500.0,0.00027671,17]
[391666065,1760723458393,-500.0,0.00027671,17]
[391666066,1760723458403,-10272.10520533,0.00027698,2]
[391666067,1760723458412,-193.24,0.000277,2]
[391666068,1760723458421,-10652.17309792,0.00027753,2]
[391666069,1760723458430,-11046.30350255,0.00027808,2]
[391666070,1760723458439,-11455.01673214,0.00027863,2]
[391666071,1760723458448,-6900.0,0.000279,10]
[391666072,1760723458458,-11878.85235123,0.00027918,2]
[391666073,1760723458467,-4903.97407632,0.00027938,2]
[391666074,1760723458477,-286.04,0.00027945,17]
[391666075,1760723458486,-500.0,0.00027945,17]
[391666076,1760723458495,-539.63,0.00027945,17]
[391666077,1760723458504,-500.0,0.00027945,17]
[391666078,1760723458514,-500.0,0.00027945,17]
[391666079,1760723458524,-500.0,0.00027945,17]
[391666080,1760723458533,-251.56,0.00027945,17]
[391666081,1760723458542,-473.39,0.00027945,14]
[391666082,1760723458552,-500.0,0.00027945,17]
[391666083,1760723458561,-552.88,0.00027945,17]
[391666084,1760723458571,-500.0,0.00027945,17]
[391666085,1760723458580,-2653.06,0.00027945,17]
[391666086,1760723458595,-199.0,0.00027945,8]
[391666087,1760723458604,-500.0,0.00027945,17]
[391666088,1760723458613,-500.0,0.00027945,17]
[391666089,1760723458623,-394.57666118,0.00027966,2]
[391666090,1760723458633,-12318.36988823,0.00027973,2]
[391666091,1760723458643,-151.0,0.00028026,2]
[391666092,1760723458652,-12774.14957409,0.00028028,2]
[391666093,1760723458661,-13246.79310833,0.00028083,2]
[391666094,1760723458671,-13736.92445334,0.00028138,2]
[391666095,1760723458680,-500.0,0.00028141,2]
[391666096,1760723458690,-5377.53426996,0.00028142,2]
[391666097,1760723458700,-286.25408731,0.00028188,2]
[391666098,1760723458709,-1713.92,0.00028203,2]
[391666099,1760723458717,-6364.6,0.00028203,2]
[391666100,1760723458727,-500.0,0.00028219,17]
[391666101,1760723458736,-539.63,0.00028219,17]
[391666102,1760723458745,-500.0,0.00028219,17]
[391666103,1760723458755,-500.0,0.00028219,17]
[391666104,1760723458764,-377.99,0.00028219,17]
[391666105,1760723458773,-223.63989158,0.00028219,17]
[391666106,1760723458783,-552.88,0.00028219,17]
[391666107,1760723458792,-645.1376708,0.00028219,17]
[391666108,1760723458800,-2653.06,0.00028219,17]
[391666109,1760723458810,-199.0,0.00028219,9]
[391666110,1760723458819,-500.0,0.00028219,17]
[391666111,1760723458828,-500.0,0.00028219,17]
[391666112,1760723458838,-227.76072452,0.00028253,4]
[391666113,1760723458849,-161.76895716,0.0002847,2]
[391666114,1760723458859,-198.41,0.00028493,17]
[391666115,1760723458868,-539.63,0.00028493,17]
[391666116,1760723458877,-500.0,0.00028493,17]
[391666117,1760723458887,-500.0,0.00028493,17]
[391666118,1760723458897,-1579.12,0.00028493,4]
[391666119,1760723458907,-552.88,0.00028493,17]
[391666120,1760723458916,-2653.06,0.00028493,17]
[391666121,1760723458925,-199.0,0.00028493,10]
[391666122,1760723458935,-500.0,0.00028493,17]
[391666123,1760723458944,-500.0,0.00028493,17]
[391666124,1760723458954,-725.14,0.000285,2]
[391666125,1760723458964,-723.93,0.000285,7]
[391666126,1760723458973,-500.0,0.00028626,10]
[391666127,1760723458983,-539.63,0.00028767,17]
[391666128,1760723458992,-500.0,0.00028767,17]
[391666129,1760723459002,-500.0,0.00028767,17]
[391666130,1760723459011,-552.88,0.00028767,17]
[391666131,1760723459021,-2653.06,0.00028767,17]
[391666132,1760723459031,-196.76481376,0.00028767,11]
[391666133,1760723459040,-500.0,0.00028767,17]
[391666134,1760723459049,-500.0,0.00028767,17]
[391666135,1760723459059,-334.5472959,0.00028847,2]
[391666136,1760723459068,-161.87821488,0.00028847,2]
[391666137,1760723459078,-267.46074303,0.00028847,2]
[391666138,1760723459088,-500.0,0.000289,10]
[391666139,1760723459097,-539.63,0.00029041,17]
[391666140,1760723459107,-562.36,0.00029041,17]
[391666141,1760723459117,-500.0,0.00029041,17]
[391666142,1760723459127,-552.88,0.00029041,17]
[391666143,1760723459136,-2653.06,0.00029041,17]
[391666144,1760723459145,-500.0,0.00029041,17]
[391666145,1760723459155,-500.0,0.00029041,17]
[391666146,1760723459165,-1444.0,0.00029041,120]
[391666147,1760723459174,-4903.97407632,0.00029065,2]
[391666148,1760723459184,-500.0,0.00029173,17]
[391666149,1760723459193,-10000.0,0.00029173,2]
[391666150,1760723459203,-500.0,0.00029174,10]
[391666151,1760723459212,-6397.21,0.000292,2]
[391666152,1760723459221,-155.34,0.00029298,2]
[391666153,1760723459230,-539.63,0.00029315,17]
[391666154,1760723459240,-500.0,0.00029315,17]
[391666155,1760723459249,-450.0,0.00029315,16]
[391666156,1760723459259,-552.88,0.00029315,17]
[391666157,1760723459268,-2653.06,0.00029315,17]
[391666158,1760723459277,-500.0,0.00029315,17]
[391666159,1760723459286,-500.0,0.00029315,17]
[391666160,1760723459296,-3192.6,0.000294,7]
[391666161,1760723459305,-500.0,0.00029448,10]
[391666162,1760723459314,-5377.53426996,0.00029584,2]
[391666163,1760723459324,-3748.0,0.00029586,2]
[391666164,1760723459334,-539.63,0.00029589,17]
[391666165,1760723459343,-500.0,0.00029589,17]
[391666166,1760723459354,-1579.12,0.00029589,120]
[391666167,1760723459363,-552.88,0.00029589,17]
[391666168,1760723459372,-2653.06,0.00029589,17]
[391666169,1760723459382,-500.0,0.00029589,17]
[391666170,1760723459391,-500.0,0.00029589,17]
[391666171,1760723459400,-725.14,0.000296,2]
[391666172,1760723459409,-723.93,0.000296,7]
[391666173,1760723459419,-1488.0,0.00029649,2]
[391666174,1760723459428,-3748.0,0.00029659,2]
[391666175,1760723459437,-500.0,0.00029722,10]
[391666176,1760723459446,-539.63,0.00029863,17]
[391666177,1760723459455,-500.0,0.00029863,17]
[391666178,1760723459465,-552.88,0.00029863,17]
[391666179,1760723459474,-2653.06,0.00029863,17]
[391666180,1760723459483,-500.0,0.00029863,17]
[391666181,1760723459492,-500.0,0.00029863,17]
[391666182,1760723459502,-585.91091667,0.00029875,2]
[391666183,1760723459511,-417.51708044,0.00029879,2]
[391666184,1760723459520,-200.0,0.00029883,2]
[391666185,1760723459529,-585.91091667,0.00029887,2]
[391666186,1760723459539,-9164.59567632,0.00029889,2]
[391666187,1760723459548,-417.51708044,0.00029898,2]
[391666188,1760723459558,-417.51708044,0.00029905,2]
[391666189,1760723459567,-1844.94628751,0.00029909,2]
[391666190,1760723459577,-9164.59567632,0.0002991,2]
[391666191,1760723459589,-1844.94628751,0.00029919,2]
[391666192,1760723459600,-9164.59567632,0.00029945,2]
[391666193,1760723459609,-673.0,0.00029951,2]
[391666194,1760723459619,-1844.94628751,0.00029959,2]
[391666195,1760723459628,-9164.59567632,0.00029964,2]
[391666196,1760723459638,-417.51708044,0.0002997,2]
[391666197,1760723459647,-1844.94628751,0.00029988,2]
[391666198,1760723459656,-585.91091667,0.0002999,2]
[391666199,1760723459668,-500.0,0.00029996,10]
[391666200,1760723459677,-585.91091667,0.00029999,2]
[391666201,1760723459687,-3500.42801841,0.0003,2]
[391666202,1760723459696,-3000.0,0.0003,2]
[391666203,1760723459706,-6397.21,0.0003,2]
[391666204,1760723459715,-286.25408731,0.00030004,15]
[391666205,1760723459724,-168.0,0.00030008,2]
[391666206,1760723459733,-2050.0,0.00030073,2]
[391666207,1760723459742,-1267.0,0.00030073,2]
[391666208,1760723459752,-3408.0,0.00030073,2]
[391666209,1760723459761,-749.0,0.00030073,2]
[391666210,1760723459770,-1310.0,0.00030073,2]
[391666211,1760723459780,-605.0,0.00030073,2]
[391666212,1760723459789,-572.819,0.00030073,2]
[391666213,1760723459798,-1589.0,0.00030073,2]
[391666214,1760723459808,-1183.0,0.00030073,2]
[391666215,1760723459817,-902.0,0.00030073,2]
[391666216,1760723459827,-826.0,0.00030073,2]
[391666217,1760723459837,-3356.0,0.00030073,2]
[391666218,1760723459847,-558.548,0.00030073,2]
[391666219,1760723459857,-1583.0,0.00030073,2]
[391666220,1760723459867,-6445.0,0.00030073,2]
[391666221,1760723459877,-3192.6,0.000301,7]
[391666222,1760723459886,-500.0,0.00030136,120]
[391666223,1760723459896,-539.63,0.00030136,17]
[391666224,1760723459905,-4517.375,0.00030136,3]
[391666225,1760723459915,-552.88,0.00030136,17]
[391666226,1760723459925,-2653.06,0.00030136,17]
[391666227,1760723459934,-500.0,0.00030136,17]
[391666228,1760723459944,-500.0,0.00030136,17]
[391666229,1760723459954,-3748.0,0.00030147,2]
[391666230,1760723459964,-150.0,0.00030151,120]
[391666231,1760723459973,-346.92554585,0.00030216,2]
[391666232,1760723459983,-277.35679052,0.00030216,2]
[391666233,1760723459992,-695.39793187,0.00030217,2]
[391666234,1760723460003,-668.65185757,0.00030217,2]
[391666235,1760723460012,-673.0,0.0003026,2]
[391666236,1760723460026,-499.98,0.0003027,10]
[391666237,1760723460036,-168.0,0.00030328,2]
[391666238,1760723460046,-150.0,0.00030341,120]
[391666239,1760723460055,-168.0,0.00030343,2]
[391666240,1760723460065,-2000.0,0.000304,2]
[391666241,1760723460075,-539.63,0.0003041,17]
[391666242,1760723460085,-552.88,0.0003041,17]
[391666243,1760723460095,-2653.06,0.0003041,17]
[391666244,1760723460104,-561.85,0.0003041,17]
[391666245,1760723460114,-525.0,0.0003041,17]
[391666246,1760723460123,-150.0,0.00030478,120]
[391666247,1760723460133,-500.0,0.00030485,15]
[391666248,1760723460143,-10000.0,0.00030543,5]
[391666249,1760723460311,-5888.0,0.00030544,2]
[391666250,1760723460322,-394.57666118,0.00030552,2]
[391666251,1760723460331,-673.0,0.00030568,2]
[391666252,1760723460341,-152.0,0.000306,4]
[391666253,1760723460352,-299.99,0.0003062,12]
[391666254,1760723460361,-999.99,0.0003062,2]
[391666255,1760723460371,-150.99,0.0003062,2]
[391666256,1760723460381,-3345.51,0.0003062,2]
[391666257,1760723460391,-1134.69,0.0003062,2]
[391666258,1760723460400,-150.99,0.0003062,2]
[391666259,1760723460410,-9999.99,0.0003062,2]
[391666260,1760723460419,-300.0,0.00030633,5]
[391666261,1760723460429,-539.63,0.00030684,17]
[391666262,1760723460438,-1579.12,0.00030684,120]
[391666263,1760723460448,-552.88,0.00030684,17]
[391666264,1760723460457,-2653.06,0.00030684,17]
[391666265,1760723460467,-230.14710284,0.00030685,2]
[391666266,1760723460476,-725.14,0.000307,2]
[391666267,1760723460486,-723.93,0.000307,30]
[391666268,1760723460496,-500.0,0.00030759,15]
[391666269,1760723460506,-168.0,0.00030761,2]
[391666270,1760723460515,-6397.21,0.000308,2]
[391666271,1760723460524,-3192.6,0.000308,7]
[391666272,1760723460534,-5888.0,0.00030801,7]
[391666273,1760723460543,-168.0,0.00030802,2]
[391666274,1760723460553,-168.0,0.00030849,7]
[391666275,1760723460562,-150.0,0.00030869,120]
[391666276,1760723460571,-250.0,0.0003087,2]
[391666277,1760723460582,-250.0,0.0003087,2]
[391666278,1760723460594,-673.0,0.00030877,2]
[391666279,1760723460604,-539.71,0.00030958,17]
[391666280,1760723460614,-553.01,0.00030958,17]
[391666281,1760723460624,-2653.22232376,0.00030958,17]
[391666282,1760723460635,-250.0,0.0003097,2]
[391666283,1760723460644,-179.0,0.00031,120]
[391666284,1760723460654,-153.0,0.00031,120]
[391666285,1760723460665,-5377.53426996,0.00031026,2]
[391666286,1760723460674,-168.0,0.0003103,2]
[391666287,1760723460684,-500.0,0.00031033,15]
[391666288,1760723460693,-250.0,0.0003107,2]
[391666289,1760723460703,-150.0,0.00031122,120]
[391666290,1760723460713,-168.0,0.00031124,2]
[391666291,1760723460723,-150.0,0.00031179,2]
[391666292,1760723460732,-500.0,0.00031179,2]
[391666293,1760723460742,-500.0,0.00031179,2]
[391666294,1760723460751,-500.0,0.00031179,2]
[391666295,1760723460760,-150.81914312,0.00031179,2]
[391666296,1760723460770,-500.0,0.00031179,2]
[391666297,1760723460779,-500.0,0.00031179,2]
[391666298,1760723460789,-500.0,0.00031179,2]
[391666299,1760723460798,-458.0,0.00031179,2]
[391666300,1760723460808,-300.0,0.00031179,2]
[391666301,1760723460818,-500.0,0.00031179,2]
[391666302,1760723460827,-500.0,0.00031179,2]
[391666303,1760723460837,-1792.0,0.00031179,2]
[391666304,1760723460848,-500.0,0.00031179,2]
[391666305,1760723460857,-1566.0,0.00031179,2]
[391666306,1760723460867,-150.0,0.00031179,2]
[391666307,1760723460876,-500.0,0.00031179,2]
[391666308,1760723460886,-500.0,0.00031179,2]
[391666309,1760723460895,-150.0,0.00031179,2]
[391666310,1760723460904,-150.0,0.00031179,2]
[391666311,1760723460914,-673.0,0.00031186,2]
[391666312,1760723460923,-168.0,0.00031193,2]
[391666313,1760723460933,-596.550923,0.000312,6]
[391666314,1760723460943,-347.91,0.000312,30]
[391666315,1760723460953,-500.0,0.00031229,2]
[391666316,1760723460963,-2500.0,0.0003123,30]
[391666317,1760723460972,-500.0,0.00031233,17]
[391666318,1760723460982,-150.0,0.00031234,2]
[391666319,1760723460992,-500.0,0.00031234,2]
[391666320,1760723461001,-500.0,0.00031234,2]
[391666321,1760723461011,-500.0,0.00031234,2]
[391666322,1760723461020,-500.0,0.00031234,2]
[391666323,1760723461030,-500.0,0.00031234,2]
[391666324,1760723461039,-500.0,0.00031234,2]
[391666325,1760723461049,-458.0,0.00031234,2]
[391666326,1760723461059,-300.0,0.00031234,2]
[391666327,1760723461068,-500.0,0.00031234,2]
[391666328,1760723461078,-500.0,0.00031234,2]
[391666329,1760723461088,-1792.0,0.00031234,2]
[391666330,1760723461100,-500.0,0.00031234,2]
[391666331,1760723461110,-1566.0,0.00031234,2]
[391666332,1760723461119,-200.59891275,0.00031234,2]
[391666333,1760723461129,-500.0,0.00031234,2]
[391666334,1760723461139,-1000.0,0.00031257,11]
[391666335,1760723461150,-1000.0,0.00031257,11]
[391666336,1760723461159,-1000.0,0.00031257,11]
[391666337,1760723461169,-1000.0,0.00031257,11]
[391666338,1760723461179,-1000.0,0.00031257,11]
[391666339,1760723461189,-1000.0,0.00031257,11]
[391666340,1760723461198,-1000.0,0.00031257,11]
[391666341,1760723461208,-1074.56141629,0.00031257,11]
[391666342,1760723461218,-200.0,0.0003128,2]
[391666343,1760723461227,-1963.0,0.00031284,30]
[391666344,1760723461236,-150.0,0.00031285,2]
[391666345,1760723461246,-151.56273098,0.00031289,2]
[391666346,1760723461256,-500.0,0.00031289,2]
[391666347,1760723461265,-500.0,0.00031289,2]
[391666348,1760723461275,-562.82213547,0.00031289,2]
[391666349,1760723461284,-500.0,0.00031289,2]
[391666350,1760723461294,-500.0,0.00031289,2]
[391666351,1760723461303,-500.0,0.00031289,2]
[391666352,1760723461313,-458.0,0.00031289,2]
[391666353,1760723461323,-300.0,0.00031289,2]
[391666354,1760723461332,-500.0,0.00031289,2]
[391666355,1760723461342,-500.0,0.00031289,2]
[391666356,1760723461359,-1792.0,0.00031289,2]
[391666357,1760723461369,-500.0,0.00031289,2]
[391666358,1760723461379,-1566.0,0.00031289,2]
[391666359,1760723461388,-500.0,0.00031289,2]
[391666360,1760723461398,-546.25,0.00031307,15]
[391666361,1760723461408,-500.0,0.00031324,17]
[391666362,1760723461417,-500.0,0.00031324,17]
[391666363,1760723461427,-3748.0,0.00031325,7]
[391666364,1760723461437,-222.88851174,0.00031343,2]
[391666365,1760723461447,-500.0,0.00031343,2]
[391666366,1760723461456,-500.0,0.00031343,2]
[391666367,1760723461466,-500.0,0.00031343,2]
[391666368,1760723461475,-500.0,0.00031343,2]
[391666369,1760723461485,-458.0,0.00031343,2]
[391666370,1760723461495,-201.4963499,0.00031343,2]
[391666371,1760723461505,-500.0,0.00031343,2]
[391666372,1760723461515,-500.0,0.00031343,2]
[391666373,1760723461525,-1792.0,0.00031343,2]
[391666374,1760723461535,-500.0,0.00031343,2]
[391666375,1760723461544,-1566.0,0.00031343,2]
[391666376,1760723461554,-629.6173567,0.00031343,2]
[391666377,1760723461564,-500.0,0.00031398,2]
[391666378,1760723461574,-500.0,0.00031398,2]
[391666379,1760723461584,-500.0,0.00031398,2]
[391666380,1760723461600,-500.0,0.00031398,2]
[391666381,1760723461609,-458.0,0.00031398,2]
[391666382,1760723461619,-500.0,0.00031398,2]
[391666383,1760723461629,-500.0,0.00031398,2]
[391666384,1760723461640,-1792.0,0.00031398,2]
[391666385,1760723461650,-500.0,0.00031398,2]
[391666386,1760723461659,-1566.0,0.00031398,2]
[391666387,1760723461670,-1091.0,0.00031407,5]
[391666388,1760723461679,-500.0,0.00031443,2]
[391666389,1760723461689,-286112.9764,0.00031444,2]
[391666390,1760723461700,-500.0,0.00031453,2]
[391666391,1760723461709,-500.0,0.00031453,2]
[391666392,1760723461718,-500.0,0.00031453,2]
[391666393,1760723461728,-458.0,0.00031453,2]
[391666394,1760723461738,-500.0,0.00031453,2]
[391666395,1760723461747,-500.0,0.00031453,2]
[391666396,1760723461756,-1792.0,0.00031453,2]
[391666397,1760723461766,-500.0,0.00031453,2]
[391666398,1760723461775,-1566.0,0.00031453,2]
[391666399,1760723461785,-31314.81650842,0.00031463,2]
[391666400,1760723461795,-673.0,0.00031495,2]
[391666401,1760723461804,-3192.6,0.000315,7]
[391666402,1760723461813,-500.0,0.00031506,120]
[391666403,1760723461823,-500.0,0.00031508,2]
[391666404,1760723461832,-500.0,0.00031508,2]
[391666405,1760723461842,-500.0,0.00031508,2]
[391666406,1760723461855,-458.0,0.00031508,2]